bitfinex/quotes_ETHUSD_20240811
["timestamp","ask_amount","ask_price","bid_price","bid_amount"]
[1723397707581,0.07605425,2625.7,2625.3,3.91649799]
[1723397707863,2.66586,2625.8,2625.3,6.58284799]
[1723397708071,2.74191425,2625.8,2625.3,6.58284799]
[1723397710871,2.4914,2625.9,2625.4,2.66616]
[1723397711183,0.07605425,2625.9,2625.5,3.5910508]
[1723397711370,4.96355,2626.2,2625.6,2.66605]
[1723397711572,4.96355,2626.2,2625.8,2.6658]
[1723397711573,2.2981,2626.2,2625.8,2.6658]
[1723397712113,2.2981,2626.2,2625.8,2.74195934]
[1723397712283,7.26736274,2626.3,2625.8,2.50205934]
[1723397712480,7.26736274,2626.3,2625.8,5.09174]
[1723397713012,7.26736274,2626.3,2625.8,5.16789932]
[1723397713214,7.26736274,2626.3,2625.9,2.66571]
[1723397713414,7.26736274,2626.3,2625.8,5.93007301]
[1723397713575,2.66534,2626.4,2625.8,5.93002301]
[1723397713913,2.74139425,2626.4,2625.8,5.93002301]
[1723397714114,2.74139425,2626.4,2625.8,6.00618238]
[1723397714332,2.66534,2626.4,2625.8,6.00618238]
[1723397714609,2.2981,2626.6,2625.9,0.66318925]
[1723397714817,2.2981,2626.9,2626.2,2.66538]
[1723397715016,2.2981,2626.9,2626.2,2.74152747]
[1723397715514,2.2981,2626.9,2626.2,2.50204747]
[1723397715673,2.2981,2627.0,2626.5,2.66507]
[1723397715873,2.2981,2627.0,2626.4,2.66514]
[1723397715874,2.37415425,2627.0,2626.4,2.66514]
[1723397716299,5.03886425,2627.0,2626.4,5.33031]
[1723397716472,5.03886425,2627.0,2626.5,0.55805147]
[1723397716473,2.66474,2626.9,2626.5,0.55805147]
[1723397717767,2.37415425,2627.0,2626.1,2.66551]
[1723397717768,2.66509,2626.6,2626.1,2.66551]
[1723397718064,2.2981,2626.6,2626.0,0.55]
[1723397718834,2.66516,2626.5,2626.0,3.21559]
[1723397719036,2.66516,2626.5,2626.1,0.89704093]
[1723397719246,2.2981,2626.6,2626.1,0.89704093]
[1723397719446,5.03924425,2626.6,2626.1,0.89704093]
[1723397720877,5.03924425,2626.6,2626.1,3.56254093]
[1723397721679,2.37415425,2626.6,2626.2,2.66544]
[1723397721974,2.66495,2626.7,2626.3,2.4259]
[1723397722172,9.93197274,2627.1,2626.5,2.66512]
[1723397722345,4.3232748,2627.8,2626.2,0.67781309]
[1723397722346,2.2981,2627.7,2626.7,2.4259]
[1723397722670,2.66414,2627.5,2627.0,2.66458]
[1723397723237,2.66399,2627.7,2627.2,2.66438]
[1723397723670,2.66399,2627.7,2627.1,2.4259]
[1723397723671,2.66398,2627.7,2627.1,2.4259]
[1723397723835,2.66403,2627.6,2627.1,5.09041]
[1723397724036,2.66379,2627.9,2627.2,2.66442]
[1723397724377,2.66379,2627.9,2627.4,2.66422]
[1723397724543,12.66362,2628.0,2627.4,5.32833]
[1723397724875,10.0,2628.0,2627.6,2.66396]
[1723397725086,10.0,2628.0,2627.7,2.4259]
[1723397726844,10.0,2628.0,2627.7,5.08982]
[1723397727878,10.0,2628.0,2627.7,5.87282368]
[1723397728391,10.0,2628.0,2627.7,5.87274368]
[1723397730003,10.0,2628.0,2627.7,3.20890368]
[1723397730148,10.0,2628.0,2627.7,5.87281368]
[1723397730350,10.0,2628.0,2627.7,8.53672368]
[1723397730550,10.0,2628.0,2627.8,3.51748237]
[1723397731592,10.0,2628.0,2627.8,0.85367237]
[1723397731951,10.0,2628.0,2627.9,0.55]
[1723397732190,10.0,2628.0,2627.9,3.21372]
[1723397732985,10.0,2628.0,2627.8,0.85367237]
[1723397733162,10.0,2628.0,2627.9,0.59434124]
[1723397733467,10.0,2628.0,2627.9,3.25806124]
[1723397733679,10.0,2628.0,2627.9,5.92178124]
[1723397733878,10.0,2628.0,2627.9,6.47178124]
[1723397734081,10.0,2628.0,2627.9,3.25806124]
[1723397734294,10.0,2628.0,2627.9,0.59434124]
[1723397735259,10.0,2628.0,2627.9,3.25806124]
[1723397735876,10.0,2628.0,2627.9,5.92178124]
[1723397736079,10.0,2628.0,2627.9,6.47178124]
[1723397739799,10.0,2628.0,2627.9,9.13550124]
[1723397740164,10.0,2628.0,2627.9,6.47178124]
[1723397742584,10.0,2628.0,2627.9,11.60230124]
[1723397743689,10.0,2628.0,2627.9,17.26602124]
[1723397744415,10.0,2628.0,2627.9,11.93858124]
[1723397745270,10.0,2628.0,2627.9,14.60230124]
[1723397746572,10.0,2628.0,2627.9,11.38858124]
[1723397746770,10.0,2628.0,2627.9,8.92178124]
[1723397748308,10.0,2628.0,2627.9,9.47178124]
[1723397750208,10.0,2628.0,2627.9,3.80806124]
[1723397750701,10.0,2628.0,2627.9,6.47178124]
[1723397753387,10.0,2628.0,2627.8,2.66381]
[1723397754484,10.0,2628.0,2627.6,2.66397]
[1723397754688,2.3895,2627.9,2627.5,2.66405]
[1723397754921,2.46555425,2627.9,2627.5,2.66405]
[1723397755122,5.12927425,2627.9,2627.4,2.66422]
[1723397755296,2.3895,2627.8,2627.2,2.66442]
[1723397755494,2.74003425,2627.7,2627.2,2.66442]
[1723397755726,2.74003425,2627.7,2627.1,2.66453]
[1723397755727,2.3895,2627.6,2627.1,2.66453]
[1723397756328,2.3895,2627.6,2627.0,2.931016]
[1723397756329,2.3895,2627.6,2627.2,2.66438]
[1723397756637,10.0,2628.0,2627.5,2.66407]
[1723397756638,2.3895,2627.8,2627.5,2.66407]
[1723397757403,2.3895,2627.8,2627.6,2.664]
[1723397757592,10.0,2628.0,2627.7,2.66386]
[1723397758404,10.0,2628.0,2627.3,2.74038454]
[1723397758603,10.0,2628.0,2627.8,2.66381]
[1723397759222,10.0,2628.0,2627.8,2.66375]
[1723397759744,10.0,2628.0,2627.6,2.66392]
[1723397759898,10.0,2628.0,2627.7,3.21388]
[1723397761002,10.0,2628.0,2627.5,2.66405]
[1723397761742,10.0,2628.0,2627.7,2.6639]
[1723397762645,10.0,2628.0,2627.8,2.66374]
[1723397762798,10.0,2628.0,2627.9,2.66372]
[1723397763359,10.0,2628.0,2627.8,2.66374]
[1723397763360,2.3895,2627.9,2627.5,2.66404]
[1723397763503,2.3895,2627.9,2627.6,0.55]
[1723397764029,2.3895,2627.9,2627.5,2.66404]
[1723397764836,2.3895,2627.9,2627.4,2.66422]
[1723397765002,2.3895,2627.9,2627.4,2.930642]
[1723397766535,2.3895,2627.9,2627.5,2.66412]
[1723397767072,2.3895,2627.9,2627.6,2.66402]
[1723397767561,2.46555425,2627.9,2627.4,2.930572]
[1723397767761,5.05323,2627.9,2627.4,2.930572]
[1723397768059,5.05323,2627.9,2627.4,5.594752]
[1723397768269,2.46555425,2627.9,2627.4,5.594742]
[1723397768571,2.3895,2627.9,2627.4,2.930572]
[1723397768771,2.3895,2627.9,2627.5,2.66412]
[1723397769930,2.3895,2627.9,2627.5,2.66406]
[1723397774741,2.3895,2627.9,2627.6,2.66393]
[1723397774946,10.0,2628.0,2627.5,0.07611259]
[1723397775131,10.0,2628.0,2627.9,2.66372]
[1723397775933,10.0,2628.0,2627.9,3.21372]
[1723397776176,10.0,2628.0,2627.9,3.80908235]
[1723397776463,10.0,2628.0,2627.9,6.47280235]
[1723397776844,10.0,2628.0,2627.9,3.80908235]
[1723397777048,10.0,2628.0,2627.9,6.47280235]
[1723397777667,10.0,2628.0,2627.9,3.80908235]
[1723397778031,10.0,2628.0,2627.9,6.47280235]
[1723397778231,10.0,2628.0,2627.9,8.85850235]
[1723397778674,10.0,2628.0,2627.9,17.18594235]
[1723397778836,0.4632,2628.4,2628.3,7.98993]
[1723397779033,0.4632,2628.4,2628.3,10.92563]
[1723397779645,0.4632,2628.4,2628.3,8.26232]
[1723397781181,0.4632,2628.4,2628.3,10.92563]
[1723397781677,0.4632,2628.4,2628.3,18.97583854]
[1723397781884,0.4632,2628.4,2628.3,19.03909535]
[1723397782470,0.4632,2628.4,2628.3,21.42379834]
[1723397782949,0.4632,2628.4,2628.3,19.03909535]
[1723397783546,0.4632,2628.4,2628.3,21.42267422]
[1723397784479,0.4632,2628.4,2628.3,21.61830993]
[1723397784978,0.3332,2628.4,2628.3,21.61830993]
[1723397785545,0.3332,2628.4,2628.3,19.23473106]
[1723397785772,0.1032,2628.4,2628.3,19.23473106]
[1723397787856,2.3739,2629.6,2629.1,2.66249]
[1723397788848,2.3739,2629.6,2629.1,2.73854989]
[1723397789184,2.3739,2629.6,2629.1,5.40099989]
[1723397789341,2.3739,2629.6,2629.1,2.73850989]
[1723397789544,0.07605425,2629.5,2628.9,2.66264]
[1723397789782,2.73818425,2629.5,2628.9,5.32528]
[1723397790146,2.73818425,2629.5,2628.9,2.66264]
[1723397790485,2.73818425,2629.5,2628.9,5.32529]
[1723397790657,2.73818425,2629.5,2629.0,2.66259]
[1723397791047,2.66213,2629.5,2629.0,2.73865535]
[1723397791240,2.3739,2629.6,2629.0,2.73865535]
[1723397791446,5.03592,2629.6,2629.0,2.73865535]
[1723397793407,5.03592,2629.6,2629.0,3.27878488]
[1723397793607,2.6621,2629.5,2629.0,3.27878488]
[1723397793810,5.09933,2629.3,2628.7,2.66283]
[1723397794108,2.73847425,2629.2,2628.5,2.66305]
[1723397794328,2.66251,2629.1,2628.5,2.66303]
[1723397794618,2.73845425,2629.2,2628.5,2.929333]
[1723397794825,2.73845425,2629.2,2628.7,2.66284]
[1723397795123,2.51305425,2629.3,2628.8,2.66274]
[1723397795705,0.07605425,2629.2,2628.8,2.66274]
[1723397795911,0.07605425,2629.2,2628.7,2.66284]
[1723397797324,2.66292,2628.7,2628.1,3.0]
[1723397797492,2.73906425,2628.6,2628.1,5.66346]
[1723397797697,2.437,2628.5,2628.1,3.0]
[1723397797883,2.437,2628.5,2628.0,2.66361]
[1723397798084,2.437,2628.5,2628.1,5.66348]
[1723397798394,2.437,2628.5,2628.1,3.0]
[1723397798595,2.437,2628.5,2628.3,2.66326]
[1723397798812,2.66268,2629.0,2628.3,2.66331]
[1723397799011,7.26736274,2629.1,2627.9,3.266375]
[1723397799012,2.437,2628.8,2628.5,2.66305]
[1723397799212,2.437,2628.8,2628.6,2.66299]
[1723397801647,9.70436274,2629.1,2628.7,2.6629]
[1723397801814,2.437,2629.1,2628.7,2.6629]
[1723397802003,2.437,2629.1,2628.8,2.66278]
[1723397802344,2.437,2629.1,2628.7,3.20309661]
[1723397810356,2.2651,2629.3,2628.9,2.66263]
[1723397810859,7.26736274,2629.5,2629.1,2.66242]
[1723397813141,7.26736274,2629.5,2629.2,2.66234]
[1723397814070,7.26736274,2629.5,2629.2,2.73840465]
[1723397814901,2.2651,2629.6,2629.2,2.66234]
[1723397815773,2.2651,2629.6,2629.1,5.40093076]
[1723397816092,2.2651,2629.6,2629.1,3.4690021]
[1723397816462,2.2651,2629.6,2629.1,6.1314521]
[1723397816648,2.2651,2629.6,2629.1,3.4690021]
[1723397816988,2.2651,2629.6,2629.2,0.07606075]
[1723397817664,2.2651,2629.6,2629.2,2.73841075]
[1723397818005,2.2651,2629.6,2629.2,3.35915204]
[1723397818284,4.9269,2629.8,2629.3,2.66229]
[1723397819197,2.2651,2629.8,2629.3,2.66225]
[1723397819360,2.2651,2629.8,2629.4,2.66212]
[1723397819567,2.2651,2629.8,2629.5,0.54004308]
[1723397819875,7.26736274,2630.1,2629.5,0.54004308]
[1723397819876,2.6616,2630.0,2629.5,3.20213308]
[1723397820277,2.6616,2630.0,2629.5,5.86417308]
[1723397820488,2.6616,2630.0,2629.5,3.20208308]
[1723397821185,5.32326,2630.0,2629.5,3.20208308]
[1723397821489,2.6616,2630.0,2629.5,2.66204]
[1723397821662,2.6616,2630.0,2629.5,5.32408]
[1723397821862,12.19395274,2630.1,2629.6,2.66194]
[1723397822464,9.53246274,2630.1,2629.7,2.66183]
[1723397822787,7.26736274,2630.1,2629.7,2.66183]
[1723397822993,7.26736274,2630.1,2629.8,2.66177]
[1723397823490,7.26736274,2630.1,2629.9,2.66168]
[1723397823829,2.2651,2630.3,2629.9,2.66168]
[1723397823830,4.9264,2630.3,2629.9,0.53995571]
[1723397824118,4.9264,2630.3,2629.7,2.73787709]
[1723397824412,2.2651,2630.3,2629.7,5.39971709]
[1723397824580,4.92641,2630.3,2629.7,2.73787709]
[1723397824768,4.92641,2630.3,2629.8,0.35039751]
[1723397825515,4.92641,2630.3,2629.8,3.01213751]
[1723397825677,4.92641,2630.3,2629.8,0.35039751]
[1723397825872,2.66131,2630.3,2629.8,3.01217751]
[1723397826073,2.2651,2630.6,2629.9,5.57369546]
[1723397826287,2.2651,2630.6,2630.1,5.32284]
[1723397826513,2.66093,2630.7,2630.1,5.32284]
[1723397826695,2.66093,2630.7,2630.2,2.66136]
[1723397828236,2.2651,2630.8,2630.3,5.32251]
[1723397828416,5.00195425,2630.8,2630.3,2.66123]
[1723397828786,5.00195425,2630.8,2630.2,0.07603738]
[1723397828787,2.73695425,2630.7,2630.2,2.73740738]
[1723397828989,2.66099,2630.6,2630.2,0.53988474]
[1723397829224,2.73695425,2630.7,2630.1,2.66142]
[1723397829397,5.39789425,2630.7,2630.1,2.66142]
[1723397829598,5.39789425,2630.7,2629.9,5.57363546]
[1723397829599,2.66109,2630.5,2629.9,5.57363546]
[1723397829790,0.07605425,2630.4,2629.9,8.23524546]
[1723397830129,5.32194,2630.7,2630.0,0.82352455]
[1723397830316,2.66095,2630.7,2630.1,2.66149]
[1723397830484,5.3219,2630.7,2630.1,3.25124538]
[1723397830691,2.66095,2630.7,2630.1,5.91268538]
[1723397831292,2.66074,2630.9,2630.3,2.66124]
[1723397831589,0.1258174,2631.0,2630.4,0.27372776]
[1723397831817,2.73678425,2630.9,2630.4,0.27372776]
[1723397832126,2.66086,2630.8,2630.1,3.25119538]
[1723397832327,2.66086,2630.8,2630.1,3.32722005]
[1723397832635,2.7864574,2631.0,2630.3,2.66128]
[1723397832924,2.66069,2630.9,2630.3,2.66128]
[1723397833131,2.66069,2630.9,2630.3,3.31509301]
[1723397833315,2.7864574,2631.0,2630.4,2.66114]
[1723397833630,2.66069,2630.9,2630.4,2.66114]
[1723397834137,2.66069,2630.9,2630.3,3.31508301]
[1723397834338,2.66079,2630.8,2630.3,3.31508301]
[1723397835938,2.7864574,2631.0,2630.4,0.39411136]
[1723397836124,2.7864574,2631.0,2630.4,3.05530136]
[1723397836435,2.66079,2630.8,2630.4,0.39411136]
[1723397836624,2.66079,2630.8,2630.3,3.31513301]
[1723397838507,5.32165,2630.8,2630.3,0.65385301]
[1723397838704,2.66114,2630.5,2629.9,2.66162]
[1723397838933,0.07605425,2630.4,2629.9,5.32326]
[1723397839205,0.07605425,2630.4,2629.9,2.66162]
[1723397839405,0.07605425,2630.4,2629.9,3.193964]
[1723397839800,0.07605425,2630.4,2629.7,2.66183]
[1723397839801,2.66154,2630.1,2629.6,2.3274]
[1723397840045,2.52965425,2630.2,2629.8,2.66172]
[1723397840358,5.11453,2630.7,2629.9,2.66163]
[1723397840644,5.11453,2630.7,2630.1,2.66144]
[1723397840645,5.19058425,2630.7,2630.1,2.66144]
[1723397840839,5.19058425,2630.7,2630.0,2.66159]
[1723397841041,2.66109,2630.5,2630.0,2.66159]
[1723397841251,0.07605425,2630.4,2630.0,3.09743452]
[1723397843220,0.07605425,2630.4,2630.0,0.43584452]
[1723397843526,2.73730425,2630.4,2629.9,2.66169]
[1723397843732,2.66125,2630.4,2629.9,2.66169]
[1723397844158,2.66125,2630.4,2629.9,2.66164]
[1723397844454,0.07605425,2630.6,2629.6,2.3274]
[1723397844656,2.66109,2630.5,2629.9,2.66161]
[1723397844822,0.07605425,2630.4,2629.9,5.32322]
[1723397845357,0.07605425,2630.4,2629.9,2.66161]
[1723397845527,2.4536,2630.3,2629.9,3.2988479]
[1723397846042,0.07605425,2630.4,2629.9,5.9604879]
[1723397846622,2.73716425,2630.5,2630.0,2.66158]
[1723397846856,5.39830425,2630.5,2630.0,0.59604279]
[1723397847062,5.39830425,2630.5,2629.9,2.66161]
[1723397847063,2.73716425,2630.5,2629.9,2.66161]
[1723397847355,2.73716425,2630.5,2629.9,5.32325]
[1723397847563,0.07605425,2630.5,2630.1,2.3274]
[1723397847760,10.26736274,2630.9,2630.1,2.3274]
[1723397847761,5.1144,2630.8,2630.2,3.28734123]
[1723397847944,2.73694425,2630.7,2630.3,0.56147412]
[1723397848143,2.66109,2630.5,2630.3,0.56147412]
[1723397848452,2.73714425,2630.5,2630.0,2.66153]
[1723397848667,2.3089,2630.4,2629.8,5.09803]
[1723397848879,2.73714425,2630.5,2629.9,1.1096979]
[1723397849172,2.73714425,2630.5,2629.9,3.7713879]
[1723397849359,0.07605425,2630.4,2629.9,3.7713879]
[1723397849730,0.07605425,2630.4,2629.9,0.5596979]
[1723397849932,0.07605425,2630.5,2629.9,0.5596979]
[1723397850251,2.66085,2630.8,2630.1,2.66148]
[1723397850637,2.66095,2630.7,2630.1,5.3229]
[1723397850871,2.66095,2630.7,2630.1,2.66142]
[1723397850872,2.661,2630.6,2630.1,2.66142]
[1723397851176,0.07605425,2630.5,2630.1,3.22368498]
[1723397851536,0.07605425,2630.6,2630.2,2.66138]
[1723397851734,2.66084,2630.8,2630.3,2.66127]
[1723397851966,0.07605425,2630.7,2630.4,0.51736085]
[1723397853183,2.73701425,2630.7,2630.4,0.51736085]
[1723397853388,3.79916,2630.5,2629.7,2.66182]
[1723397853536,2.66135,2630.3,2629.7,2.66182]
[1723397853742,0.07605425,2630.2,2629.8,2.66171]
[1723397853972,0.07605425,2630.2,2629.9,0.532353]
[1723397854153,0.07605425,2630.2,2629.9,3.194043]
[1723397854351,0.07605425,2630.3,2629.9,3.194043]
[1723397854879,2.73734425,2630.3,2629.9,0.532353]
[1723397858484,0.07605425,2630.3,2629.9,3.194043]
[1723397858680,0.07605425,2630.4,2630.0,0.3194043]
[1723397858882,2.73729425,2630.4,2630.0,0.3194043]
[1723397859194,2.73729425,2630.4,2629.9,3.194043]
[1723397860784,2.6613,2630.3,2629.9,0.532353]
[1723397860985,0.07605425,2630.2,2629.8,2.66179]
[1723397861481,2.66115,2630.5,2629.9,2.66167]
[1723397861482,2.73720425,2630.5,2629.9,2.66167]
[1723397861640,2.73720425,2630.5,2629.9,5.32331]
[1723397861850,2.73720425,2630.5,2629.9,5.855641]
[1723397862541,2.73719425,2630.5,2629.9,3.193971]
[1723397862778,5.39837425,2630.5,2629.9,3.193971]
[1723397863091,2.3089,2630.2,2629.9,0.532331]
[1723397863271,2.38495425,2630.2,2629.7,2.66183]
[1723397863578,0.07605425,2630.2,2629.7,2.66183]
[1723397863815,0.07605425,2630.2,2629.8,2.6617]
[1723397863973,0.07605425,2630.2,2629.9,0.532353]
[1723397864174,0.07605425,2630.2,2629.9,3.193993]
[1723397864875,2.3089,2630.3,2630.0,2.66155]
[1723397864876,0.07605425,2630.3,2630.0,2.66155]
[1723397865394,0.07605425,2630.3,2629.9,0.532353]
[1723397865597,0.07605425,2630.3,2630.0,0.5855873]
[1723397866334,9.92807274,2630.9,2630.3,2.66123]
[1723397866335,4.96973,2630.8,2630.3,2.66123]
[1723397866470,5.04578425,2630.8,2630.3,2.66123]
[1723397867116,2.38495425,2630.8,2630.3,2.66123]
[1723397867285,2.3089,2630.8,2630.3,2.66123]
[1723397867480,0.07605425,2630.7,2630.4,0.266123]
[1723397867687,0.07605425,2630.7,2630.1,5.09773]
[1723397868005,2.73698425,2630.7,2630.2,2.66138]
[1723397869102,0.07605425,2630.7,2630.3,2.66128]
[1723397869312,2.3089,2630.8,2630.4,2.66117]
[1723397869488,2.3089,2630.8,2630.5,0.266117]
[1723397869685,0.1258174,2631.0,2630.5,2.927177]
[1723397870009,2.6607,2630.9,2630.5,0.266117]
[1723397870318,0.07605425,2630.8,2630.5,0.266117]
[1723397871016,0.07605425,2630.9,2630.5,2.927197]
[1723397871206,0.07605425,2630.9,2630.6,0.5588327]
[1723397872535,0.07605425,2630.9,2630.5,2.66108]
[1723397872684,0.07605425,2630.9,2630.5,5.32212]
[1723397872885,0.07605425,2630.9,2630.5,2.66104]
[1723397873094,0.1258174,2631.0,2630.5,4.93191]
[1723397873417,0.1258174,2631.0,2630.5,2.2709]
[1723397873623,0.1258174,2631.0,2630.7,2.66087]
[1723397873827,0.1258174,2631.0,2630.6,0.22709]
[1723397873977,0.1258174,2631.0,2630.6,2.88807]
[1723397875097,0.1258174,2631.0,2630.7,2.66088]
[1723397875301,0.1258174,2631.0,2630.8,2.66078]
[1723397875499,0.1258174,2631.0,2630.8,3.22325736]
[1723397876036,0.1258174,2631.0,2630.9,8.21827905]
[1723397876530,0.1258174,2631.0,2630.9,13.27082198]
[1723397876720,0.1258174,2631.0,2630.9,16.27082198]
[1723397877099,0.1258174,2631.0,2630.9,13.87895905]
[1723397877282,0.1258174,2631.0,2630.9,15.71585337]
[1723397880210,0.1258174,2631.0,2630.9,13.05517337]
[1723397880732,0.1258174,2631.0,2630.9,12.97915432]
[1723397882124,0.1258174,2631.0,2630.9,15.63983432]
[1723397884528,0.1258174,2631.0,2630.9,18.30051432]
[1723397884733,0.1258174,2631.0,2630.9,20.68389099]
[1723397885233,7.4e-06,2631.0,2630.9,20.68389099]
[1723397885421,2.4096,2632.2,2631.8,2.6597]
[1723397885597,2.4096,2632.2,2631.7,2.65979]
[1723397885798,2.4096,2632.2,2631.9,2.65966]
[1723397886319,0.07605425,2632.4,2632.0,2.65957]
[1723397886631,0.07605425,2632.4,2631.5,4.93096]
[1723397886632,2.73529425,2632.4,2631.5,2.2709]
[1723397886937,2.4096,2632.0,2631.6,0.55]
[1723397887134,2.48565425,2632.0,2631.6,6.20996]
[1723397887428,2.48565425,2632.0,2631.6,3.55]
[1723397888390,5.06922,2632.0,2631.6,3.55]
[1723397888832,5.06922,2632.0,2631.6,6.20997]
[1723397888833,2.4096,2632.0,2631.6,6.20997]
[1723397888992,2.65928,2632.3,2631.8,2.65972]
[1723397889192,0.07605425,2632.2,2631.8,2.65972]
[1723397889431,2.3548,2632.4,2631.9,2.65966]
[1723397889599,2.3548,2632.4,2632.0,2.65956]
[1723397889802,2.3548,2632.4,2632.1,2.65945]
[1723397890038,5.01402,2632.4,2631.9,2.65966]
[1723397890327,5.01402,2632.4,2631.8,0.0759861]
[1723397890328,2.73532425,2632.3,2631.8,2.65972]
[1723397890746,2.43085425,2632.2,2631.3,2.66022]
[1723397891036,2.3548,2632.1,2631.5,2.66007]
[1723397891239,2.3548,2632.1,2631.7,2.6598]
[1723397891438,2.3548,2632.1,2631.7,5.31961]
[1723397891592,2.3548,2632.1,2631.3,2.4008]
[1723397891593,2.3548,2632.1,2631.6,2.65997]
[1723397891938,2.65981,2631.8,2631.2,2.66031]
[1723397892234,0.767438,2631.7,2631.3,3.0]
[1723397892398,2.73586425,2631.8,2631.3,3.0]
[1723397892740,5.01457,2631.9,2631.4,2.66017]
[1723397892941,5.01457,2631.9,2631.4,2.66012]
[1723397893229,2.65988,2631.7,2631.3,3.0]
[1723397893432,3.43492743,2631.7,2631.1,2.66047]
[1723397893635,3.43492743,2631.7,2631.0,5.06132]
[1723397893636,2.73603425,2631.6,2631.0,2.66052]
[1723397893800,2.3548,2631.5,2631.1,3.21047]
[1723397894696,5.01488,2631.5,2631.0,2.66052]
[1723397895248,0.07605425,2631.4,2630.8,2.66073]
[1723397895414,2.3548,2631.2,2630.5,2.4008]
[1723397895743,2.43085425,2631.2,2630.6,2.6609]
[1723397896045,2.6605,2631.1,2630.6,2.6609]
[1723397896338,5.09130425,2631.2,2630.6,2.6609]
[1723397896833,5.09130425,2631.2,2630.5,2.66109]
[1723397897050,5.60043468,2631.2,2630.6,3.0]
[1723397897337,5.60043468,2631.2,2630.6,2.66093]
[1723397897508,5.60043468,2631.2,2630.7,2.66088]
[1723397897773,2.43085425,2631.2,2630.8,2.66078]
[1723397898899,2.3548,2631.2,2630.8,2.66078]
[1723397899283,2.3548,2631.2,2630.6,5.32182]
[1723397899468,5.09123425,2631.2,2630.5,3.0]
[1723397899670,5.09123425,2631.2,2630.5,5.66104]
[1723397899880,2.66053,2631.1,2630.5,6.493253]
[1723397900082,0.07605425,2631.0,2630.5,6.493253]
[1723397900395,2.3548,2631.2,2630.8,2.66075]
[1723397900705,2.3548,2631.2,2630.8,2.66073]
[1723397901275,2.3548,2631.2,2630.8,2.66071]
[1723397902004,2.43085425,2631.2,2630.8,2.66071]
[1723397902862,2.43085425,2631.2,2630.5,3.832213]
[1723397903057,2.43085425,2631.2,2630.8,2.66069]
[1723397903058,2.3548,2631.2,2630.8,2.66069]
[1723397903261,2.43085425,2631.2,2630.8,2.66073]
[1723397903495,2.43085425,2631.2,2630.8,5.32146]
[1723397903658,2.43085425,2631.2,2630.8,2.66073]
[1723397903862,2.43085425,2631.2,2630.8,2.66072]
[1723397905023,2.43085425,2631.2,2630.8,2.6607]
[1723397905186,2.43085425,2631.2,2630.8,5.32141]
[1723397905391,2.3548,2631.2,2630.8,5.32143]
[1723397905889,2.3548,2631.2,2630.9,2.66067]
[1723397906100,12.28228274,2631.5,2631.0,2.66049]
[1723397906322,1.137,2631.4,2631.0,2.66049]
[1723397906534,1.21305425,2631.4,2631.0,2.66049]
[1723397907018,1.21305425,2631.4,2630.7,0.07601186]
[1723397907183,2.3548,2631.5,2631.1,2.66042]
[1723397907586,5.0149,2631.5,2630.9,2.66061]
[1723397907917,1.137,2631.4,2630.9,5.32122]
[1723397908079,1.137,2631.4,2631.0,2.66056]
[1723397908686,1.137,2631.4,2630.9,2.66061]
[1723397908890,1.137,2631.4,2631.0,0.321061]
[1723397909115,1.137,2631.4,2631.1,2.66038]
[1723397909319,2.3548,2631.5,2631.3,2.66028]
[1723397909629,3.4932,2631.8,2631.4,2.66011]
[1723397910110,3.4932,2631.8,2631.5,2.66006]
[1723397910491,3.4932,2631.8,2631.4,2.66011]
[1723397910812,6.15303,2631.8,2631.3,2.66026]
[1723397911021,6.15303,2631.8,2631.3,2.66027]
[1723397911828,6.15303,2631.8,2631.2,2.66031]
[1723397911829,1.137,2631.6,2631.2,2.66031]
[1723397911983,2.3562,2631.5,2631.2,2.66031]
[1723397912185,2.3562,2631.5,2631.0,2.6605]
[1723397912493,2.43225425,2631.5,2631.0,2.6605]
[1723397912701,2.3562,2631.5,2631.0,2.6605]
[1723397912897,2.3562,2631.5,2631.2,2.66037]
[1723397913076,2.3562,2631.5,2631.0,2.98155]
[1723397913584,2.3562,2631.5,2631.1,2.66046]
[1723397914220,2.3562,2631.5,2631.0,2.98155]
[1723397914728,2.3562,2631.5,2631.0,5.64206]
[1723397914880,2.3562,2631.5,2631.1,2.66047]
[1723397915076,2.43225425,2631.5,2631.1,2.66047]
[1723397915885,2.43225425,2631.5,2630.9,2.66067]
[1723397915886,5.09235425,2631.5,2630.9,2.66059]
[1723397916081,5.09235425,2631.5,2631.0,3.0]
[1723397916318,5.09235425,2631.5,2631.0,2.66058]
[1723397917390,5.01654,2631.3,2630.8,3.21073]
[1723397917694,0.07605425,2631.2,2630.8,2.66077]
[1723397918093,0.07605425,2631.6,2631.1,2.66048]
[1723397918400,1.21305425,2631.6,2631.1,2.66042]
[1723397918621,1.21305425,2631.6,2631.1,5.32085]
[1723397918800,1.21305425,2631.6,2631.1,2.66042]
[1723397919195,1.21305425,2631.6,2631.2,2.66036]
[1723397919703,1.21305425,2631.6,2631.0,2.66056]
[1723397919704,2.3562,2631.5,2631.0,2.66056]
[1723397919904,1.137,2631.2,2630.8,2.66076]
[1723397920099,0.07605425,2631.1,2630.8,2.66076]
[1723397920504,2.3562,2631.3,2631.1,2.66048]
[1723397921040,2.43225425,2631.6,2631.1,2.66043]
[1723397921195,2.3562,2631.6,2631.2,2.66032]
[1723397921806,2.3562,2631.4,2630.8,2.6607]
[1723397922030,2.3562,2631.4,2630.9,3.21062]
[1723397922031,5.01641,2631.4,2630.9,3.21062]
[1723397922238,5.01641,2631.4,2631.0,2.66058]
[1723397922639,2.3562,2631.4,2631.0,2.66058]
[1723397923008,2.3562,2631.4,2630.8,2.6607]
[1723397923009,0.07605425,2631.3,2630.8,2.6607]
[1723397923334,3.79753,2631.1,2630.5,5.66103]
[1723397923497,2.43225425,2631.0,2630.6,2.66098]
[1723397924443,2.43225425,2631.0,2630.5,3.0]
[1723397924444,5.09284425,2631.0,2630.5,5.66108]
[1723397924648,5.09284425,2631.0,2630.4,2.66111]
[1723397924649,3.79769,2630.9,2630.4,2.66111]